[Event "Late-Titled-Tuesday-Blitz-February-13-2024"]
[Site "Chess.com"]
[Date "2024.02.13"]
[Round "2"]
[White "WindWhistler11"]
[Black "ritanovikova"]
[Result "1-0"]
[WhiteElo "2498"]
[BlackElo "2221"]
[TimeControl "180+1"]
[EndTime "14:18:19 PST"]
[Termination "WindWhistler11 won on time"]

1. Nf3 {[%clk 0:02:52.2]} 1... g6 {[%clk 0:02:58.6]} 2. g3 {[%clk 0:02:52.9]}
2... Bg7 {[%clk 0:02:58.6]} 3. Bg2 {[%clk 0:02:53.3]} 3... Nf6 {[%clk
0:02:58.3]} 4. O-O {[%clk 0:02:54]} 4... O-O {[%clk 0:02:58.7]} 5. c4 {[%clk
0:02:53]} 5... c5 {[%clk 0:02:58.6]} 6. Nc3 {[%clk 0:02:52.8]} 6... Nc6 {[%clk
0:02:59.1]} 7. a3 {[%clk 0:02:52.9]} 7... d6 {[%clk 0:02:58.9]} 8. Rb1 {[%clk
0:02:51.4]} 8... Nd4 {[%clk 0:02:57.3]} 9. Ne1 {[%clk 0:02:47.4]} 9... Rb8
{[%clk 0:02:53.4]} 10. e3 {[%clk 0:02:43.9]} 10... Nc6 {[%clk 0:02:50.5]} 11. b4
{[%clk 0:02:42.5]} 11... a6 {[%clk 0:02:47.1]} 12. d3 {[%clk 0:02:41.7]} 12...
Qc7 {[%clk 0:02:44.9]} 13. Bd2 {[%clk 0:02:40.1]} 13... b6 {[%clk 0:02:44.8]}
14. b5 {[%clk 0:02:37.8]} 14... axb5 {[%clk 0:02:44.7]} 15. Nxb5 {[%clk
0:02:35.6]} 15... Qd8 {[%clk 0:02:44.5]} 16. a4 {[%clk 0:02:34.7]} 16... Bb7
{[%clk 0:02:40.3]} 17. Qb3 {[%clk 0:02:28.1]} 17... Na5 {[%clk 0:02:37.3]} 18.
Bxa5 {[%clk 0:02:21.2]} 18... bxa5 {[%clk 0:02:10.7]} 19. e4 {[%clk 0:02:13.9]}
19... Bc6 {[%clk 0:01:59.2]} 20. Nc2 {[%clk 0:02:12.7]} 20... Bxb5 {[%clk
0:01:58.3]} 21. axb5 {[%clk 0:02:10.4]} 21... Nd7 {[%clk 0:01:52.7]} 22. f4
{[%clk 0:02:02.4]} 22... Nb6 {[%clk 0:01:51.2]} 23. Kh1 {[%clk 0:01:48.9]} 23...
a4 {[%clk 0:01:48]} 24. Qa3 {[%clk 0:01:47]} 24... e6 {[%clk 0:01:31.3]} 25. Ne3
{[%clk 0:01:44.9]} 25... Bd4 {[%clk 0:01:28]} 26. Nc2 {[%clk 0:01:42.8]} 26...
Bg7 {[%clk 0:01:24.2]} 27. Ne3 {[%clk 0:01:39.3]} 27... Bd4 {[%clk 0:01:23.8]}
28. Nd1 {[%clk 0:01:40]} 28... f5 {[%clk 0:01:17.5]} 29. Nc3 {[%clk 0:01:33.2]}
29... Qf6 {[%clk 0:01:10]} 30. Ne2 {[%clk 0:01:32.4]} 30... Be3 {[%clk
0:00:56.4]} 31. Rbe1 {[%clk 0:01:18.2]} 31... Bd2 {[%clk 0:00:50.9]} 32. Rd1
{[%clk 0:01:11.7]} 32... Bb4 {[%clk 0:00:49.6]} 33. Qa2 {[%clk 0:01:12.2]} 33...
a3 {[%clk 0:00:27.6]} 34. d4 {[%clk 0:01:11.9]} 34... fxe4 {[%clk 0:00:18.7]}
35. Bxe4 {[%clk 0:01:07.7]} 35... e5 {[%clk 0:00:19]} 36. dxe5 {[%clk
0:00:59.6]} 36... dxe5 {[%clk 0:00:18.8]} 37. Qc2 {[%clk 0:00:54.3]} 37... exf4
{[%clk 0:00:18.1]} 38. Nxf4 {[%clk 0:00:52.1]} 38... Qc3 {[%clk 0:00:17.9]} 39.
Qe2 {[%clk 0:00:48.5]} 39... Kg7 {[%clk 0:00:13]} 40. Ne6+ {[%clk 0:00:47.4]}
40... Kh6 {[%clk 0:00:12.1]} 41. Rd3 {[%clk 0:00:43.8]} 41... Rxf1+ {[%clk
0:00:09.8]} 42. Qxf1 {[%clk 0:00:43.1]} 42... Qe5 {[%clk 0:00:08.7]} 43. Qc1+
{[%clk 0:00:40.4]} 43... g5 {[%clk 0:00:07.7]} 44. Bd5 {[%clk 0:00:20.4]} 44...
a2 {[%clk 0:00:07.5]} 45. Rd1 {[%clk 0:00:15.4]} 45... Bc3 {[%clk 0:00:07]} 46.
h4 {[%clk 0:00:14.8]} 46... a1=Q {[%clk 0:00:06.6]} 47. hxg5+ {[%clk 0:00:15.4]}
47... Kg6 {[%clk 0:00:06.7]} 48. Nf4+ {[%clk 0:00:15]} 48... Kg7 {[%clk
0:00:06.6]} 49. Qc2 {[%clk 0:00:14.2]} 49... Qxd1+ {[%clk 0:00:04.6]} 50. Qxd1
{[%clk 0:00:15.1]} 50... Qd4 {[%clk 0:00:04.2]} 51. Qh5 {[%clk 0:00:14.6]} 51...
Qd1+ {[%clk 0:00:03.4]} 52. Qxd1 {[%clk 0:00:14.1]} 52... Re8 {[%clk 0:00:02]}
53. Qh5 {[%clk 0:00:12.9]} 53... Re1+ {[%clk 0:00:01.7]} 54. Kg2 {[%clk
0:00:13.6]} 1-0

[Event "Late-Titled-Tuesday-Blitz-February-13-2024"]
[Site "Chess.com"]
[Date "2024.02.13"]
[Round "2"]
[White "MyDream003"]
[Black "kaanadayhamle"]
[Result "1-0"]
[WhiteElo "2742"]
[BlackElo "2438"]
[TimeControl "180+1"]
[EndTime "14:18:21 PST"]
[Termination "MyDream003 won by resignation"]

1. Nf3 {[%clk 0:02:57]} 1... Nf6 {[%clk 0:03:00.1]} 2. d4 {[%clk 0:02:55.6]}
2... d5 {[%clk 0:03:00.3]} 3. c4 {[%clk 0:02:50.7]} 3... dxc4 {[%clk 0:03:00.6]}
4. e3 {[%clk 0:02:50.5]} 4... a6 {[%clk 0:02:59.8]} 5. Bxc4 {[%clk 0:02:50.4]}
5... b5 {[%clk 0:03:00.1]} 6. Bb3 {[%clk 0:02:45.5]} 6... Bb7 {[%clk 0:02:59.1]}
7. O-O {[%clk 0:02:44.8]} 7... e6 {[%clk 0:02:59.6]} 8. Nc3 {[%clk 0:02:43.5]}
8... c5 {[%clk 0:02:56.4]} 9. Qe2 {[%clk 0:02:30.5]} 9... Qc7 {[%clk 0:02:46.2]}
10. Rd1 {[%clk 0:02:16.4]} 10... c4 {[%clk 0:02:41.5]} 11. Bc2 {[%clk
0:02:16.3]} 11... Bd6 {[%clk 0:02:25.3]} 12. e4 {[%clk 0:02:10.1]} 12... b4
{[%clk 0:02:20.6]} 13. Na4 {[%clk 0:01:56.8]} 13... b3 {[%clk 0:02:19.5]} 14.
axb3 {[%clk 0:01:54.1]} 14... cxb3 {[%clk 0:02:20.4]} 15. Bd3 {[%clk 0:01:52.3]}
15... Be7 {[%clk 0:02:10.4]} 16. Bg5 {[%clk 0:01:41.6]} 16... O-O {[%clk
0:02:05]} 17. Rac1 {[%clk 0:01:34.8]} 17... Qa5 {[%clk 0:02:03.7]} 18. Nc5
{[%clk 0:01:29.2]} 18... Bc6 {[%clk 0:01:58.7]} 19. Ne5 {[%clk 0:01:15.5]} 19...
Rd8 {[%clk 0:01:31.9]} 20. Nxb3 {[%clk 0:01:11.5]} 20... Qb6 {[%clk 0:01:30.9]}
21. Bc2 {[%clk 0:01:00.5]} 21... Bb5 {[%clk 0:01:05.3]} 22. Qe3 {[%clk
0:00:53.6]} 22... Nbd7 {[%clk 0:00:54.2]} 23. Nxd7 {[%clk 0:00:50.3]} 23... Rxd7
{[%clk 0:00:55.1]} 24. Nc5 {[%clk 0:00:49.5]} 24... Rc7 {[%clk 0:00:48.6]} 25.
b4 {[%clk 0:00:49.4]} 25... Rac8 {[%clk 0:00:48.6]} 26. Ra1 {[%clk 0:00:45.5]}
26... Ng4 {[%clk 0:00:17.8]} 27. Qf4 {[%clk 0:00:43.2]} 27... Nf6 {[%clk
0:00:16.5]} 28. Qf3 {[%clk 0:00:27.9]} 28... h6 {[%clk 0:00:16.3]} 29. Bf4
{[%clk 0:00:27]} 29... Rc6 {[%clk 0:00:16.1]} 30. h3 {[%clk 0:00:26.7]} 30...
Rd8 {[%clk 0:00:14.2]} 31. Be3 {[%clk 0:00:22.8]} 31... Rcc8 {[%clk 0:00:14.2]}
32. Bb3 {[%clk 0:00:21.5]} 32... Qb8 {[%clk 0:00:13.3]} 33. Bf4 {[%clk
0:00:21.5]} 33... Qb6 {[%clk 0:00:13.1]} 34. Be5 {[%clk 0:00:21.8]} 34... Nd7
{[%clk 0:00:12.7]} 35. Nxd7 {[%clk 0:00:17.8]} 35... Rxd7 {[%clk 0:00:13.6]} 36.
Qg3 {[%clk 0:00:18.1]} 36... Bf8 {[%clk 0:00:13.6]} 37. d5 {[%clk 0:00:18.6]}
37... exd5 {[%clk 0:00:13.2]} 38. Bxd5 {[%clk 0:00:19.5]} 38... Bc4 {[%clk
0:00:12.6]} 39. Rac1 {[%clk 0:00:17.7]} 39... Qxb4 {[%clk 0:00:12]} 40. Rd4
{[%clk 0:00:18]} 40... Qb2 {[%clk 0:00:09.1]} 41. Rdxc4 {[%clk 0:00:14.1]} 41...
Qxc1+ {[%clk 0:00:07.1]} 42. Rxc1 {[%clk 0:00:15]} 42... Rxc1+ {[%clk
0:00:07.6]} 43. Kh2 {[%clk 0:00:15.7]} 43... a5 {[%clk 0:00:08.1]} 44. Qb3
{[%clk 0:00:15.3]} 44... Rc8 {[%clk 0:00:06.7]} 45. Qa4 {[%clk 0:00:15.1]} 45...
Rcd8 {[%clk 0:00:06.8]} 46. Bg3 {[%clk 0:00:14.2]} 46... Bb4 {[%clk 0:00:06.2]}
47. Bf4 {[%clk 0:00:14.4]} 47... Ra7 {[%clk 0:00:04]} 48. Be3 {[%clk 0:00:14.6]}
48... Rad7 {[%clk 0:00:04.4]} 49. g3 {[%clk 0:00:14.8]} 49... Rc8 {[%clk
0:00:03.9]} 50. Kg2 {[%clk 0:00:15.2]} 50... Rdc7 {[%clk 0:00:04]} 51. e5 {[%clk
0:00:14.2]} 51... Rc3 {[%clk 0:00:04.2]} 52. e6 {[%clk 0:00:14]} 52... Ra3
{[%clk 0:00:04.2]} 53. exf7+ {[%clk 0:00:14]} 53... Kf8 {[%clk 0:00:05.1]} 54.
Qd7 {[%clk 0:00:13.7]} 54... Rac3 {[%clk 0:00:04.7]} 55. Qe6 {[%clk 0:00:13.3]}
55... R3c7 {[%clk 0:00:04.8]} 56. Qe4 {[%clk 0:00:13.5]} 56... Re7 {[%clk
0:00:05.2]} 57. Qh7 {[%clk 0:00:13.1]} 57... Rxe3 {[%clk 0:00:04.6]} 58. Qg8+
{[%clk 0:00:10.5]} 58... Ke7 {[%clk 0:00:05.1]} 59. Qxc8 {[%clk 0:00:11.4]} 1-0

[Event "Late-Titled-Tuesday-Blitz-February-13-2024"]
[Site "Chess.com"]
[Date "2024.02.13"]
[Round "2"]
[White "sakkikuska"]
[Black "Szparu"]
[Result "0-1"]
[WhiteElo "2534"]
[BlackElo "2789"]
[TimeControl "180+1"]
[EndTime "14:18:32 PST"]
[Termination "Szparu won by resignation"]

1. e4 {[%clk 0:02:59.8]} 1... c5 {[%clk 0:02:58.2]} 2. Nf3 {[%clk 0:03:00.3]}
2... d6 {[%clk 0:02:58.3]} 3. d4 {[%clk 0:03:00.8]} 3... cxd4 {[%clk 0:02:59.2]}
4. Nxd4 {[%clk 0:03:00.8]} 4... Nf6 {[%clk 0:02:59.9]} 5. f3 {[%clk 0:03:01]}
5... Nc6 {[%clk 0:03:00.6]} 6. c4 {[%clk 0:03:00.8]} 6... g6 {[%clk 0:02:52.9]}
7. Nc3 {[%clk 0:03:00.3]} 7... Bg7 {[%clk 0:02:53.1]} 8. Be3 {[%clk 0:03:00.5]}
8... O-O {[%clk 0:02:53]} 9. Qd2 {[%clk 0:02:59.5]} 9... Nxd4 {[%clk 0:02:46.7]}
10. Bxd4 {[%clk 0:02:58.5]} 10... a5 {[%clk 0:02:41.7]} 11. Rc1 {[%clk
0:02:50.9]} 11... a4 {[%clk 0:02:39.7]} 12. Nd5 {[%clk 0:02:27]} 12... Nxd5
{[%clk 0:02:35.2]} 13. cxd5 {[%clk 0:02:27.1]} 13... Bd7 {[%clk 0:02:29.5]} 14.
Bxg7 {[%clk 0:02:17]} 14... Kxg7 {[%clk 0:02:30.4]} 15. Bd3 {[%clk 0:02:16.9]}
15... Qb6 {[%clk 0:02:29.6]} 16. Qf2 {[%clk 0:02:07]} 16... Qb4+ {[%clk
0:02:23.6]} 17. Qd2 {[%clk 0:02:07.5]} 17... Qb6 {[%clk 0:02:19.8]} 18. Qf2
{[%clk 0:02:07.3]} 18... Qxf2+ {[%clk 0:02:04.7]} 19. Kxf2 {[%clk 0:02:08.2]}
19... Rfc8 {[%clk 0:02:05.3]} 20. Ke3 {[%clk 0:02:06.6]} 20... f5 {[%clk
0:01:58.8]} 21. exf5 {[%clk 0:01:57.8]} 21... gxf5 {[%clk 0:01:58]} 22. f4
{[%clk 0:01:51.6]} 22... Kf6 {[%clk 0:01:57.5]} 23. Kd4 {[%clk 0:01:49.3]} 23...
h5 {[%clk 0:01:54.1]} 24. g3 {[%clk 0:01:47]} 24... h4 {[%clk 0:01:53.1]} 25.
Rxc8 {[%clk 0:01:31.9]} 25... Rxc8 {[%clk 0:01:54]} 26. Bc4 {[%clk 0:01:30.8]}
26... Rg8 {[%clk 0:01:50.2]} 27. Rg1 {[%clk 0:01:28.4]} 27... Rh8 {[%clk
0:01:48.3]} 28. Ke3 {[%clk 0:01:06.3]} 28... hxg3 {[%clk 0:01:47.4]} 29. hxg3
{[%clk 0:01:07.2]} 29... Rh2 {[%clk 0:01:46.5]} 30. Be2 {[%clk 0:01:07]} 30...
Be8 {[%clk 0:01:31]} 31. Rd1 {[%clk 0:00:51.8]} 31... Bf7 {[%clk 0:01:21]} 32.
b4 {[%clk 0:00:42.9]} 32... Rh8 {[%clk 0:01:11]} 33. Bf3 {[%clk 0:00:34.4]}
33... Rc8 {[%clk 0:01:06.4]} 34. Kd3 {[%clk 0:00:34.3]} 34... Be8 {[%clk
0:01:03.4]} 35. a3 {[%clk 0:00:32.7]} 35... Bb5+ {[%clk 0:01:02.9]} 36. Kd2
{[%clk 0:00:33.2]} 36... Rg8 {[%clk 0:00:56.4]} 37. Rg1 {[%clk 0:00:31.2]} 37...
Bc4 {[%clk 0:00:54.5]} 38. Kc3 {[%clk 0:00:25.6]} 38... Bb3 {[%clk 0:00:54.3]}
39. Kd2 {[%clk 0:00:22.8]} 39... Rh8 {[%clk 0:00:50.9]} 40. Rh1 {[%clk
0:00:21.6]} 40... Rg8 {[%clk 0:00:48.2]} 41. Rg1 {[%clk 0:00:22.2]} 41... Rg7
{[%clk 0:00:31.3]} 42. Rg2 {[%clk 0:00:20.9]} 42... Rh7 {[%clk 0:00:31.5]} 43.
Rf2 {[%clk 0:00:18.3]} 43... Rh3 {[%clk 0:00:30]} 44. g4 {[%clk 0:00:11.3]}
44... fxg4 {[%clk 0:00:29.7]} 45. Bxg4 {[%clk 0:00:12.2]} 45... Rh1 {[%clk
0:00:24.6]} 46. Bf3 {[%clk 0:00:07.4]} 46... Ra1 {[%clk 0:00:23.3]} 47. Re2
{[%clk 0:00:07.9]} 47... Rxa3 {[%clk 0:00:19.1]} 48. Re6+ {[%clk 0:00:08.3]}
48... Kf7 {[%clk 0:00:17.7]} 49. Bh5+ {[%clk 0:00:08.1]} 49... Kf8 {[%clk
0:00:18.4]} 50. Rh6 {[%clk 0:00:01.9]} 50... Bxd5 {[%clk 0:00:17.4]} 51. Rh8+
{[%clk 0:00:02.6]} 51... Kg7 {[%clk 0:00:17.5]} 52. Re8 {[%clk 0:00:02.1]} 52...
e6 {[%clk 0:00:11.9]} 53. Bg4 {[%clk 0:00:02.5]} 53... Kf6 {[%clk 0:00:08.6]}
54. Rf8+ {[%clk 0:00:02.1]} 54... Ke7 {[%clk 0:00:09]} 55. Rh8 {[%clk
0:00:02.7]} 55... Rb3 {[%clk 0:00:09.2]} 56. Rh7+ {[%clk 0:00:02.7]} 56... Kf6
{[%clk 0:00:07.5]} 57. Rh6+ {[%clk 0:00:02.5]} 57... Kg7 {[%clk 0:00:08]} 58.
Rh2 {[%clk 0:00:02.5]} 58... Rb2+ {[%clk 0:00:08.1]} 0-1

[Event "Late-Titled-Tuesday-Blitz-February-13-2024"]
[Site "Chess.com"]
[Date "2024.02.13"]
[Round "2"]
[White "GlavkonVVS"]
[Black "TigrVShlyape"]
[Result "0-1"]
[WhiteElo "2564"]
[BlackElo "2865"]
[TimeControl "180+1"]
[EndTime "14:18:33 PST"]
[Termination "TigrVShlyape won by resignation"]

1. c4 {[%clk 0:03:00.9]} 1... e5 {[%clk 0:02:57.2]} 2. Nc3 {[%clk 0:03:01.5]}
2... Nc6 {[%clk 0:02:53.2]} 3. g3 {[%clk 0:03:02.1]} 3... Bc5 {[%clk 0:02:50.1]}
4. Bg2 {[%clk 0:03:02.7]} 4... Nge7 {[%clk 0:02:48.6]} 5. e3 {[%clk 0:03:03.3]}
5... a6 {[%clk 0:02:48.5]} 6. Nge2 {[%clk 0:03:03.9]} 6... Ba7 {[%clk
0:02:48.6]} 7. d4 {[%clk 0:03:04.2]} 7... d6 {[%clk 0:02:48.1]} 8. O-O {[%clk
0:03:03.9]} 8... O-O {[%clk 0:02:47.6]} 9. h3 {[%clk 0:03:04.3]} 9... Rb8 {[%clk
0:02:40.5]} 10. b3 {[%clk 0:03:02.2]} 10... b5 {[%clk 0:02:37.7]} 11. cxb5
{[%clk 0:03:01.8]} 11... axb5 {[%clk 0:02:37.6]} 12. Bb2 {[%clk 0:03:01]} 12...
b4 {[%clk 0:02:35.6]} 13. Nd5 {[%clk 0:02:49.7]} 13... Nxd5 {[%clk 0:02:24.9]}
14. Bxd5 {[%clk 0:02:49.6]} 14... Ne7 {[%clk 0:02:24.3]} 15. Bg2 {[%clk
0:02:49.7]} 15... Ba6 {[%clk 0:02:17.8]} 16. Re1 {[%clk 0:02:40.9]} 16... f6
{[%clk 0:02:13.9]} 17. Rc1 {[%clk 0:02:39.8]} 17... Kh8 {[%clk 0:02:13.3]} 18.
g4 {[%clk 0:02:31.2]} 18... Ng6 {[%clk 0:02:11.9]} 19. Ng3 {[%clk 0:02:22.4]}
19... Nh4 {[%clk 0:02:11.4]} 20. Bh1 {[%clk 0:02:22.6]} 20... Bb7 {[%clk
0:02:09.3]} 21. d5 {[%clk 0:02:15.1]} 21... Bc8 {[%clk 0:02:03.9]} 22. Qc2
{[%clk 0:02:07]} 22... Bb6 {[%clk 0:02:01.4]} 23. Kh2 {[%clk 0:01:58]} 23... f5
{[%clk 0:01:59]} 24. gxf5 {[%clk 0:01:48.1]} 24... Nxf5 {[%clk 0:01:50.3]} 25.
Be4 {[%clk 0:01:41.4]} 25... Nh6 {[%clk 0:01:42.5]} 26. Rh1 {[%clk 0:01:18.4]}
26... Ra8 {[%clk 0:01:32]} 27. Ba1 {[%clk 0:01:12.3]} 27... Qh4 {[%clk
0:01:25.7]} 28. Kg2 {[%clk 0:01:12.3]} 28... Nf7 {[%clk 0:01:25.9]} 29. Bf5
{[%clk 0:01:06.5]} 29... Ng5 {[%clk 0:01:23.2]} 30. Bxc8 {[%clk 0:01:06.1]}
30... Rfxc8 {[%clk 0:01:16.5]} 31. Qc4 {[%clk 0:01:02.8]} 31... Qxc4 {[%clk
0:01:14.6]} 32. Rxc4 {[%clk 0:01:01.6]} 32... Rxa2 {[%clk 0:01:14.9]} 33. h4
{[%clk 0:01:01.2]} 33... Nf7 {[%clk 0:01:10.5]} 34. Rxb4 {[%clk 0:00:57.6]}
34... Bxe3 {[%clk 0:01:09]} 35. Ne4 {[%clk 0:00:55.6]} 35... h5 {[%clk
0:01:02.2]} 36. Ra4 {[%clk 0:00:53.2]} 36... Rc2 {[%clk 0:01:00.2]} 37. Rc4
{[%clk 0:00:51.8]} 37... Rxc4 {[%clk 0:00:52.6]} 38. bxc4 {[%clk 0:00:51.6]}
38... Bb6 {[%clk 0:00:49.8]} 39. Rc1 {[%clk 0:00:47.8]} 39... Ra8 {[%clk
0:00:49.7]} 40. Bc3 {[%clk 0:00:42.7]} 40... Ra4 {[%clk 0:00:48.9]} 41. Bd2
{[%clk 0:00:40.9]} 41... Kh7 {[%clk 0:00:47.7]} 42. Kf3 {[%clk 0:00:40.3]} 42...
Ra3+ {[%clk 0:00:40.4]} 43. Be3 {[%clk 0:00:40]} 43... Bxe3 {[%clk 0:00:36.2]}
44. fxe3 {[%clk 0:00:40]} 44... Nh6 {[%clk 0:00:36.7]} 45. Ng5+ {[%clk
0:00:36.7]} 45... Kg6 {[%clk 0:00:36.6]} 46. Ke4 {[%clk 0:00:36.5]} 46... Ng4
{[%clk 0:00:33.3]} 47. Re1 {[%clk 0:00:32.3]} 47... Rc3 {[%clk 0:00:33.4]} 48.
Ne6 {[%clk 0:00:29.9]} 48... Nf6+ {[%clk 0:00:31.2]} 49. Kf3 {[%clk 0:00:27]}
49... Rxc4 {[%clk 0:00:31.5]} 50. Rg1+ {[%clk 0:00:26.8]} 50... Ng4 {[%clk
0:00:31.8]} 51. e4 {[%clk 0:00:14.5]} 51... Rc3+ {[%clk 0:00:30.9]} 52. Ke2
{[%clk 0:00:14.6]} 52... Re3+ {[%clk 0:00:31]} 53. Kd2 {[%clk 0:00:15]} 53...
Rxe4 {[%clk 0:00:31.3]} 54. Nxc7 {[%clk 0:00:15.4]} 54... Rd4+ {[%clk
0:00:29.4]} 55. Kc3 {[%clk 0:00:15.4]} 55... Kf5 {[%clk 0:00:27.5]} 56. Rf1+
{[%clk 0:00:15.3]} 56... Rf4 {[%clk 0:00:27]} 57. Rg1 {[%clk 0:00:14.8]} 57...
Rf3+ {[%clk 0:00:27.1]} 58. Kb4 {[%clk 0:00:14.8]} 58... e4 {[%clk 0:00:26.8]}
59. Kc4 {[%clk 0:00:14]} 59... Ke5 {[%clk 0:00:26.9]} 60. Nb5 {[%clk 0:00:12.8]}
60... Ne3+ {[%clk 0:00:26.6]} 61. Kb4 {[%clk 0:00:11.1]} 61... Nxd5+ {[%clk
0:00:26.9]} 62. Ka5 {[%clk 0:00:11.6]} 62... e3 {[%clk 0:00:25.6]} 63. Rxg7
{[%clk 0:00:11.4]} 63... e2 {[%clk 0:00:25.5]} 64. Rg5+ {[%clk 0:00:10.9]} 64...
Rf5 {[%clk 0:00:23.8]} 65. Rxf5+ {[%clk 0:00:10.9]} 65... Kxf5 {[%clk
0:00:23.6]} 66. Nd4+ {[%clk 0:00:11.6]} 66... Kg4 {[%clk 0:00:23.6]} 67. Nxe2
{[%clk 0:00:12.5]} 67... Nf4 {[%clk 0:00:22]} 68. Nd4 {[%clk 0:00:12.3]} 68...
d5 {[%clk 0:00:22.4]} 69. Kb5 {[%clk 0:00:12.7]} 69... Kxh4 {[%clk 0:00:22.8]}
70. Kc5 {[%clk 0:00:13.2]} 70... Kg4 {[%clk 0:00:23.4]} 71. Kd6 {[%clk
0:00:13.6]} 71... h4 {[%clk 0:00:24]} 72. Ke5 {[%clk 0:00:13.6]} 72... h3 {[%clk
0:00:24.4]} 73. Nf5 {[%clk 0:00:14.1]} 73... h2 {[%clk 0:00:24.4]} 74. Ne3+
{[%clk 0:00:14.4]} 74... Kg5 {[%clk 0:00:24.3]} 75. Nf1 {[%clk 0:00:11.4]} 75...
h1=Q {[%clk 0:00:23.8]} 76. Nd2 {[%clk 0:00:12.3]} 76... Qe1+ {[%clk 0:00:23.3]}
0-1

[Event "Late-Titled-Tuesday-Blitz-February-13-2024"]
[Site "Chess.com"]
[Date "2024.02.13"]
[Round "2"]
[White "SpeedofLight0"]
[Black "AldokhinIvan"]
[Result "1-0"]
[WhiteElo "3051"]
[BlackElo "2665"]
[TimeControl "180+1"]
[EndTime "14:18:40 PST"]
[Termination "SpeedofLight0 won on time"]

1. d4 {[%clk 0:03:00.9]} 1... Nf6 {[%clk 0:02:59.7]} 2. Nc3 {[%clk 0:03:01.1]}
2... d5 {[%clk 0:02:58.6]} 3. Bf4 {[%clk 0:03:01.7]} 3... a6 {[%clk 0:02:54.2]}
4. e3 {[%clk 0:03:02.1]} 4... Bf5 {[%clk 0:02:51.9]} 5. Bd3 {[%clk 0:03:01.9]}
5... Bg6 {[%clk 0:02:51.8]} 6. Nf3 {[%clk 0:03:01]} 6... e6 {[%clk 0:02:51.3]}
7. Ne5 {[%clk 0:02:55.7]} 7... Nbd7 {[%clk 0:02:48.5]} 8. Nxg6 {[%clk
0:02:41.3]} 8... hxg6 {[%clk 0:02:48.3]} 9. e4 {[%clk 0:02:41.7]} 9... dxe4
{[%clk 0:02:32.6]} 10. Nxe4 {[%clk 0:02:42.6]} 10... Nxe4 {[%clk 0:02:32.2]} 11.
Bxe4 {[%clk 0:02:43.5]} 11... c6 {[%clk 0:02:29.5]} 12. Qe2 {[%clk 0:02:39.4]}
12... Nf6 {[%clk 0:02:23.7]} 13. O-O-O {[%clk 0:02:38.5]} 13... Bd6 {[%clk
0:02:23.2]} 14. Bg5 {[%clk 0:02:35.1]} 14... Qa5 {[%clk 0:02:21.4]} 15. Bxf6
{[%clk 0:02:31.6]} 15... gxf6 {[%clk 0:02:18.4]} 16. Kb1 {[%clk 0:02:22.7]}
16... f5 {[%clk 0:02:15.1]} 17. Bf3 {[%clk 0:02:22.1]} 17... O-O-O {[%clk
0:02:13.7]} 18. h4 {[%clk 0:02:21.1]} 18... Qb6 {[%clk 0:02:02]} 19. c3 {[%clk
0:02:19.6]} 19... Be7 {[%clk 0:01:57.2]} 20. g3 {[%clk 0:02:19.3]} 20... Qc7
{[%clk 0:01:47.6]} 21. Qe3 {[%clk 0:02:14.3]} 21... Rdg8 {[%clk 0:01:41.8]} 22.
h5 {[%clk 0:02:09.8]} 22... g5 {[%clk 0:01:40.3]} 23. Be2 {[%clk 0:01:48.1]}
23... g4 {[%clk 0:01:36.3]} 24. Bc4 {[%clk 0:01:46.2]} 24... Bg5 {[%clk
0:01:34]} 25. Qe2 {[%clk 0:01:45.5]} 25... Rh6 {[%clk 0:01:31.3]} 26. Bb3 {[%clk
0:01:33.8]} 26... Rgh8 {[%clk 0:01:26]} 27. c4 {[%clk 0:01:33.9]} 27... Kb8
{[%clk 0:01:07.6]} 28. d5 {[%clk 0:01:33.6]} 28... c5 {[%clk 0:01:05.7]} 29. Ba4
{[%clk 0:01:25.8]} 29... e5 {[%clk 0:00:59.3]} 30. Qd3 {[%clk 0:01:12.3]} 30...
e4 {[%clk 0:00:58.3]} 31. d6 {[%clk 0:01:12.4]} 31... exd3 {[%clk 0:00:28.7]}
32. dxc7+ {[%clk 0:01:12.4]} 32... Kxc7 {[%clk 0:00:29.1]} 33. Rxd3 {[%clk
0:01:13.3]} 33... b5 {[%clk 0:00:14.6]} 34. cxb5 {[%clk 0:01:10.4]} 34... axb5
{[%clk 0:00:15]} 35. Bxb5 {[%clk 0:01:11.3]} 35... Rxh5 {[%clk 0:00:15.2]} 36.
Rxh5 {[%clk 0:01:04.7]} 36... Rxh5 {[%clk 0:00:15.2]} 37. Rd5 {[%clk 0:01:02.3]}
37... Bf6 {[%clk 0:00:10.3]} 38. Rxc5+ {[%clk 0:00:46.3]} 38... Kd6 {[%clk
0:00:10.4]} 39. Rc6+ {[%clk 0:00:45.8]} 39... Ke5 {[%clk 0:00:10.7]} 40. Bd3
{[%clk 0:00:45.1]} 40... Rh1+ {[%clk 0:00:03.6]} 41. Kc2 {[%clk 0:00:44.2]}
41... Be7 {[%clk 0:00:02.6]} 42. Rc4 {[%clk 0:00:42.8]} 42... Rh2 {[%clk
0:00:01.9]} 43. Rf4 {[%clk 0:00:43.1]} 43... Bc5 {[%clk 0:00:01.5]} 44. Rxf5+
{[%clk 0:00:43.3]} 44... Kd6 {[%clk 0:00:01.9]} 45. Rxf7 {[%clk 0:00:20.5]}
45... Rxf2+ {[%clk 0:00:02.1]} 46. Rxf2 {[%clk 0:00:20.7]} 46... Bxf2 {[%clk
0:00:03]} 47. Be2 {[%clk 0:00:21.4]} 47... Bxg3 {[%clk 0:00:03.4]} 48. Bxg4
{[%clk 0:00:22.3]} 48... Kc5 {[%clk 0:00:03.9]} 49. a3 {[%clk 0:00:21.6]} 49...
Kb5 {[%clk 0:00:03.8]} 50. b4 {[%clk 0:00:19.4]} 50... Bd6 {[%clk 0:00:03.4]}
51. Kb3 {[%clk 0:00:19.5]} 51... Kb6 {[%clk 0:00:02.9]} 52. a4 {[%clk
0:00:19.5]} 52... Bc7 {[%clk 0:00:02.5]} 53. a5+ {[%clk 0:00:19.4]} 53... Ka6
{[%clk 0:00:01.6]} 54. Be2+ {[%clk 0:00:17.9]} 54... Ka7 {[%clk 0:00:02.1]} 55.
Kc4 {[%clk 0:00:18.2]} 55... Bd8 {[%clk 0:00:02.2]} 56. Kb5 {[%clk 0:00:18.1]}
56... Bc7 {[%clk 0:00:02.6]} 57. Kc6 {[%clk 0:00:15.7]} 57... Bd8 {[%clk
0:00:02.9]} 58. Kd7 {[%clk 0:00:15.7]} 58... Bf6 {[%clk 0:00:03.2]} 59. b5
{[%clk 0:00:15.8]} 59... Bc3 {[%clk 0:00:02.1]} 60. b6+ {[%clk 0:00:09]} 60...
Kb7 {[%clk 0:00:02.3]} 61. Bf3+ {[%clk 0:00:09]} 61... Ka6 {[%clk 0:00:02.8]}
62. Be2+ {[%clk 0:00:02.7]} 62... Kxa5 {[%clk 0:00:02.5]} 63. b7 {[%clk
0:00:03.2]} 63... Be5 {[%clk 0:00:03.1]} 64. Kc6 {[%clk 0:00:03.7]} 1-0